bitfinex-derivatives/quotes_BTCF0:USTF0_20220102
["timestamp","ask_amount","ask_price","bid_price","bid_amount"]
[1641131165176,0.14033567,47138.0,47137.0,0.01205257]
[1641131165574,0.14033567,47138.0,47136.0,0.20305257]
[1641131165775,0.14033567,47138.0,47137.0,0.01205257]
[1641131167379,0.14033567,47138.0,47137.0,0.191]
[1641131167579,0.14033567,47138.0,47137.0,0.20305257]
[1641131167879,0.14033567,47138.0,47137.0,0.191]
[1641131168278,0.14033567,47138.0,47137.0,0.20305257]
[1641131168682,0.84051006,47143.0,47138.0,0.009794]
[1641131168982,0.0314,47155.0,47142.0,0.18]
[1641131169180,0.0314,47155.0,47147.0,0.02120546]
[1641131169390,0.0314,47155.0,47151.0,0.14033567]
[1641131169591,0.0904001,47154.0,47151.0,0.14033567]
[1641131171201,0.0904001,47154.0,47151.0,0.33533567]
[1641131172099,0.18,47162.0,47151.0,0.33533567]
[1641131172100,0.0904001,47161.0,47151.0,0.33533567]
[1641131172693,0.0904001,47161.0,47151.0,0.14033567]
[1641131173299,0.0904001,47161.0,47151.0,0.32833567]
[1641131174500,0.0904001,47161.0,47151.0,0.14033567]
[1641131175202,1.39874946,47161.0,47151.0,0.14033567]
[1641131175404,1.39874946,47161.0,47151.0,0.32433567]
[1641131176103,1.30834936,47160.0,47151.0,0.32433567]
[1641131176704,1.30834936,47160.0,47152.0,0.01204895]
[1641131176907,0.0904001,47160.0,47152.0,0.08452895]
[1641131177306,0.0904001,47160.0,47152.0,0.27452895]
[1641131177509,0.2704001,47160.0,47152.0,0.26248]
[1641131177706,0.18,47158.0,47152.0,0.26248]
[1641131177910,0.070744,47158.0,47152.0,0.26248]
[1641131178109,0.83269825,47156.0,47152.0,0.26248]
[1641131178710,0.83269825,47156.0,47152.0,0.07248]
[1641131179009,0.83269825,47154.0,47152.0,0.07248]
[1641131179409,0.83269825,47154.0,47152.0,0.26148]
[1641131179810,0.009794,47158.0,47152.0,0.26148]
[1641131179811,0.92309835,47153.0,47152.0,0.26148]
[1641131180611,0.92309835,47153.0,47152.0,0.07248]
[1641131181209,0.0904001,47153.0,47152.0,0.07248]
[1641131181409,0.0904001,47153.0,47152.0,0.26648]
[1641131182017,1.31814336,47158.0,47152.0,0.26648]
[1641131182418,0.35640097,47155.0,47152.0,0.26648]
[1641131182619,0.35640097,47155.0,47152.0,0.07248]
[1641131182822,0.35640097,47155.0,47151.0,0.50145626]
[1641131183320,0.35640097,47155.0,47151.0,0.69345626]
[1641131183522,0.35640097,47156.0,47151.0,0.69345626]
[1641131184121,0.35640097,47157.0,47151.0,0.69345626]
[1641131184821,0.00680952,47156.0,47151.0,0.50145626]
[1641131185228,0.36321049,47156.0,47151.0,0.14033567]
[1641131185423,0.36321049,47156.0,47151.0,0.33133567]
[1641131185621,0.00680952,47155.0,47151.0,0.33133567]
[1641131186522,0.00680952,47155.0,47151.0,0.69245626]
[1641131186721,0.00680952,47155.0,47151.0,0.50145626]
[1641131187322,0.00680952,47155.0,47151.0,0.69345626]
[1641131188634,0.00680952,47155.0,47151.0,0.50145626]
[1641131189336,0.00680952,47155.0,47151.0,0.69445626]
[1641131190839,0.00680952,47155.0,47151.0,0.50145626]
[1641131191238,0.00680952,47155.0,47151.0,0.69345626]
[1641131192240,0.18,47154.0,47151.0,0.69345626]
[1641131192441,0.00680952,47155.0,47151.0,0.69345626]
[1641131192642,0.00680952,47153.0,47151.0,0.50145626]
[1641131192843,0.00680952,47154.0,47151.0,0.50145626]
[1641131193240,0.00680952,47155.0,47151.0,0.69445626]
[1641131193441,0.00680952,47153.0,47151.0,0.69445626]
[1641131193641,0.00680952,47154.0,47151.0,0.69445626]
[1641131193840,0.00680952,47152.0,47151.0,0.69445626]
[1641131194241,0.00680952,47155.0,47151.0,0.69445626]
[1641131194445,0.00680952,47152.0,47151.0,0.69445626]
[1641131194641,0.00680952,47154.0,47151.0,0.50145626]
[1641131194842,0.00680952,47152.0,47151.0,0.50145626]
[1641131195042,0.00680952,47153.0,47151.0,0.50145626]
[1641131195243,0.00680952,47152.0,47151.0,0.69445626]
[1641131195647,0.00680952,47156.0,47151.0,0.69445626]
[1641131196046,0.35640097,47157.0,47151.0,0.69445626]
[1641131196047,0.00680952,47152.0,47151.0,0.33333567]
[1641131196245,0.00680952,47155.0,47151.0,0.33333567]
[1641131196646,0.00680952,47156.0,47151.0,0.14033567]
[1641131197145,0.77400161,47159.0,47153.0,0.36104772]
[1641131197146,0.00680952,47154.0,47153.0,0.36104772]
[1641131197345,0.00680952,47155.0,47153.0,0.36104772]
[1641131197546,0.18680952,47154.0,47153.0,0.36104772]
[1641131197747,0.19660352,47154.0,47131.0,0.12804387]
[1641131197946,0.18,47146.0,47139.0,1.73361339]
[1641131198148,0.24706,47146.0,47139.0,1.73361339]
[1641131198347,0.01660352,47145.0,47140.0,0.01205217]
[1641131199149,0.00680952,47144.0,47140.0,0.01205217]
[1641131199548,0.14714519,47144.0,47140.0,0.01205217]
[1641131200247,0.00680952,47143.0,47137.0,0.01205217]
[1641131200448,0.00680952,47143.0,47134.0,0.02121115]
[1641131200848,0.00680952,47143.0,47138.0,0.01205201]
[1641131201048,0.00680952,47143.0,47135.0,0.01205201]
[1641131201350,0.20080952,47143.0,47139.0,0.01205201]
[1641131201547,0.20080952,47143.0,47136.0,0.01205201]
[1641131201848,0.00680952,47142.0,47137.0,1.44013592]
[1641131202247,0.00680952,47142.0,47137.0,1.45218793]
[1641131202450,0.00680952,47142.0,47138.0,1.45218793]
[1641131202948,0.00680952,47142.0,47139.0,0.01205201]
[1641131203152,0.00680952,47143.0,47141.0,0.18]
[1641131203349,0.00680952,47143.0,47141.0,0.26758]
[1641131203350,0.181,47142.0,47141.0,0.26758]
[1641131203550,0.181,47142.0,47141.0,0.40791567]
[1641131203750,0.00680952,47147.0,47141.0,0.40791567]
[1641131203950,1.30834936,47151.0,47141.0,0.72574267]
[1641131204151,0.00680826,47146.0,47141.0,0.72574267]
[1641131204350,1.4198785,47155.0,47142.0,0.0212074]
[1641131204351,0.00680826,47147.0,47142.0,0.0212074]
[1641131204551,0.00680826,47145.0,47142.0,0.0212074]
[1641131204751,0.00680826,47146.0,47143.0,0.319161]
[1641131205152,1.30834936,47155.0,47143.0,0.319161]
[1641131205352,0.00680716,47145.0,47143.0,0.508161]
[1641131205551,0.00680716,47147.0,47143.0,0.508161]
[1641131205754,0.14033567,47153.0,47143.0,0.508161]
[1641131205951,0.00680723,47146.0,47143.0,0.508161]
[1641131206252,0.00680723,47152.0,47143.0,0.508161]
[1641131206452,0.00680723,47152.0,47143.0,0.189]
[1641131206652,0.00680723,47145.0,47143.0,0.189]
[1641131206851,0.00680723,47151.0,47142.0,0.13917374]
[1641131207052,0.83542168,47152.0,47142.0,0.13917374]
[1641131207256,0.83542168,47152.0,47142.0,0.32617374]
[1641131207453,0.00680724,47150.0,47147.0,0.14033567]
[1641131207655,0.5968644,47150.0,47147.0,0.14033567]
[1641131207853,0.00680724,47149.0,47147.0,0.14033567]
[1641131208256,0.36503451,47149.0,47147.0,0.14033567]
[1641131208855,0.00680724,47148.0,47147.0,0.14033567]
[1641131209256,0.00680724,47148.0,47147.0,0.32833567]
[1641131210560,0.36503451,47148.0,47147.0,0.14033567]
[1641131211359,0.00680724,47148.0,47147.0,0.33133567]
[1641131212560,0.00680724,47148.0,47147.0,0.14033567]
[1641131213366,0.00680724,47148.0,47147.0,0.33033567]
[1641131214765,0.60367164,47149.0,47147.0,0.14033567]
[1641131214964,0.00680724,47148.0,47147.0,0.14033567]
[1641131215164,0.36415341,47148.0,47147.0,0.14033567]
[1641131215367,0.36415341,47148.0,47147.0,0.33033567]
[1641131215966,0.09720473,47148.0,47147.0,0.33033567]
[1641131216765,0.09720473,47148.0,47147.0,0.14033567]
[1641131217366,0.09720473,47148.0,47147.0,0.33433567]
[1641131218866,0.93262641,47148.0,47147.0,0.33433567]
[1641131219267,0.93262641,47148.0,47147.0,0.52833567]
[1641131220668,0.93262641,47148.0,47147.0,0.14033567]
[1641131221177,0.09720473,47148.0,47147.0,0.14033567]
[1641131221470,0.09720473,47148.0,47147.0,0.33433567]
[1641131222769,0.09720473,47148.0,47147.0,0.14033567]
[1641131223369,0.09720473,47148.0,47147.0,0.33433567]
[1641131224173,0.93262641,47148.0,47147.0,0.33433567]
[1641131224572,0.93262641,47148.0,47147.0,0.14033567]
[1641131225371,0.93262641,47148.0,47147.0,0.39249567]
[1641131226275,0.09720473,47148.0,47147.0,0.39249567]
[1641131226472,0.09720473,47148.0,47147.0,0.40454563]
[1641131226674,0.09720473,47148.0,47147.0,0.21054563]
[1641131227075,0.00680724,47148.0,47147.0,0.21054563]
[1641131227275,0.36427768,47148.0,47147.0,0.40154563]
[1641131227674,0.36427768,47148.0,47147.0,0.38949567]
[1641131228675,0.36427768,47148.0,47147.0,0.19849567]
[1641131228877,0.00680724,47148.0,47147.0,0.19849567]
[1641131229078,0.60259131,47148.0,47147.0,0.19849567]
[1641131229292,0.60259131,47148.0,47147.0,0.39349567]
[1641131230588,0.60259131,47148.0,47147.0,0.19849567]
[1641131231392,0.60259131,47148.0,47147.0,0.39649567]
[1641131232291,0.00680724,47148.0,47147.0,0.40854587]
[1641131232492,0.00680724,47148.0,47147.0,0.21054587]
[1641131232692,0.00680724,47148.0,47147.0,0.19849567]
[1641131232892,0.00680724,47148.0,47147.0,0.21054566]
[1641131233294,0.60259131,47148.0,47147.0,0.40254566]
[1641131234094,0.00680724,47148.0,47147.0,0.58254566]
[1641131234696,0.00680724,47148.0,47147.0,0.39054566]
[1641131234896,0.00680724,47148.0,47147.0,0.23174967]
[1641131235298,0.00680724,47148.0,47147.0,0.42674967]
[1641131235699,0.00680724,47148.0,47147.0,0.60674967]
[1641131235898,0.00680724,47150.0,47147.0,0.60674967]
[1641131236098,0.00680724,47150.0,47147.0,0.42674967]
[1641131236298,0.00680724,47150.0,47148.0,0.01204999]
[1641131237299,0.00680724,47150.0,47148.0,0.20604999]
[1641131237999,0.00680724,47150.0,47149.0,0.01204999]
[1641131238801,0.36454276,47150.0,47149.0,0.01204999]
[1641131239102,0.36454276,47150.0,47148.0,0.01204999]
[1641131239300,0.36454276,47150.0,47149.0,0.197]
[1641131239500,0.36454276,47150.0,47149.0,0.20904999]
[1641131239702,0.00680724,47150.0,47149.0,0.20904999]
[1641131240106,0.60259131,47151.0,47149.0,0.20904999]
[1641131240302,0.00680724,47150.0,47149.0,0.20904999]
[1641131240704,0.00680724,47150.0,47149.0,0.01204999]
[1641131241204,0.00680724,47150.0,47148.0,0.01204999]
[1641131241402,0.00680724,47150.0,47149.0,0.192]
[1641131241805,0.00680724,47150.0,47149.0,0.20404999]
[1641131242706,0.00680724,47150.0,47149.0,0.01204999]
[1641131243308,0.00680724,47150.0,47149.0,0.20504999]
[1641131246913,0.00680724,47150.0,47149.0,0.01204999]
[1641131247113,0.00680724,47150.0,47149.0,0.19204999]
[1641131247313,0.00680724,47150.0,47149.0,0.20504999]
[1641131247512,0.00680724,47151.0,47149.0,0.38504999]
[1641131247714,0.00680724,47150.0,47149.0,0.20504999]
[1641131248413,0.00680724,47150.0,47149.0,0.193]
[1641131248613,0.00680724,47151.0,47147.0,1.6076821]
[1641131249014,0.00680724,47150.0,47147.0,1.6076821]
[1641131249220,0.00680724,47150.0,47147.0,0.16154131]
[1641131249513,0.00680724,47150.0,47149.0,0.18]
[1641131249714,0.00680724,47151.0,47147.0,0.35454131]
[1641131249915,0.00680724,47151.0,47147.0,0.54433531]
[1641131250114,0.00680724,47150.0,47147.0,0.54433531]
[1641131250514,0.00680724,47151.0,47147.0,0.54433531]
[1641131250715,0.00680724,47149.0,47147.0,0.35133531]
[1641131251118,0.00680724,47150.0,47147.0,0.35133531]
[1641131251314,0.00680724,47148.0,47147.0,0.54633531]
[1641131251515,0.00680724,47149.0,47147.0,0.36633531]
[1641131252016,0.00680724,47148.0,47147.0,0.36633531]
[1641131252416,0.00680724,47151.0,47147.0,0.36633531]
[1641131252617,0.00680724,47148.0,47147.0,0.17133531]
[1641131252815,0.00680724,47150.0,47147.0,0.17133531]
[1641131253222,0.00680724,47151.0,47147.0,0.17133531]
[1641131253418,0.00680724,47149.0,47147.0,0.36533531]
[1641131253620,0.00680724,47150.0,47147.0,0.36533531]
[1641131253819,0.00680724,47148.0,47147.0,0.36533531]
[1641131254020,0.00680724,47149.0,47147.0,0.36533531]
[1641131254420,0.00680724,47151.0,47147.0,0.36533531]
[1641131254620,0.00680724,47148.0,47147.0,0.36533531]
[1641131255026,0.00680724,47150.0,47147.0,0.36533531]
[1641131255221,0.00680724,47148.0,47147.0,0.17133531]
[1641131255420,0.00680724,47149.0,47147.0,0.36633531]
[1641131255824,0.36462346,47151.0,47147.0,0.36633531]
[1641131256021,0.36462346,47151.0,47148.0,0.06]
[1641131256222,0.00680724,47150.0,47148.0,0.18]
[1641131256422,0.00680724,47150.0,47147.0,0.36633531]
[1641131256725,0.00680724,47151.0,47147.0,0.17133531]
[1641131256924,0.00680724,47149.0,47147.0,0.17133531]
[1641131257224,0.00680724,47150.0,47147.0,0.17133531]
[1641131257427,0.00680724,47148.0,47147.0,0.36533531]
[1641131257826,0.00680724,47149.0,47147.0,0.36533531]
[1641131258025,0.00680724,47148.0,47147.0,0.36533531]
[1641131258226,0.00680724,47151.0,47147.0,0.36533531]
[1641131258725,0.00680724,47151.0,47147.0,0.17133531]
[1641131259328,0.00680724,47151.0,47147.0,0.36533531]
[1641131259527,0.36462346,47151.0,47147.0,0.36533531]
[1641131260027,0.00680724,47150.0,47147.0,0.36533531]
[1641131260631,0.00680724,47150.0,47147.0,0.17133531]
[1641131260827,0.36462346,47150.0,47147.0,0.17133531]
[1641131261228,0.00680724,47149.0,47147.0,0.17133531]
[1641131261428,0.00680724,47149.0,47147.0,0.36433531]
[1641131262029,0.00680724,47149.0,47147.0,0.35454131]
[1641131262230,0.00680724,47149.0,47147.0,0.33333567]
[1641131262528,0.00680724,47149.0,47147.0,0.193]
[1641131262728,0.00680724,47149.0,47146.0,1.44614079]
[1641131263331,0.00680724,47149.0,47147.0,0.191]
[1641131263733,0.59578407,47148.0,47147.0,0.191]
[1641131264031,0.60259131,47148.0,47147.0,0.191]
[1641131264733,0.60259131,47148.0,47143.0,0.02120748]
[1641131265334,0.00680724,47147.0,47144.0,0.01205024]
[1641131266636,0.35782633,47146.0,47144.0,0.01205024]
[1641131267235,0.00680724,47145.0,47144.0,0.01205024]
[1641131267435,0.00680724,47145.0,47144.0,0.20705024]
[1641131268634,0.00680724,47145.0,47144.0,0.01205024]
[1641131269338,0.00680724,47145.0,47144.0,0.20705024]
[1641131270946,0.36463357,47145.0,47144.0,0.01205024]
[1641131271344,0.36463357,47145.0,47144.0,0.20705024]
[1641131272847,0.36463357,47145.0,47144.0,0.01205024]
[1641131273347,0.36463357,47145.0,47144.0,0.20605024]
[1641131274347,0.00680724,47145.0,47144.0,0.20605024]
[1641131274748,0.60259131,47145.0,47144.0,0.20605024]
[1641131275349,0.60259131,47145.0,47144.0,0.20705024]
[1641131275552,0.00680724,47145.0,47144.0,0.20705024]
[1641131278752,0.00680724,47145.0,47144.0,0.01205024]
[1641131279351,0.00680724,47145.0,47144.0,0.20705024]
[1641131280755,0.00680724,47145.0,47144.0,0.01205024]
[1641131280957,0.36399357,47147.0,47143.0,0.02120748]
[1641131281158,0.00680724,47145.0,47143.0,0.02120748]
[1641131281356,0.00680724,47145.0,47144.0,0.195]
[1641131281557,0.00680724,47146.0,47144.0,0.195]
[1641131281757,0.00680724,47145.0,47144.0,0.195]
[1641131282360,0.00680724,47146.0,47144.0,0.195]
[1641131282558,0.00680724,47145.0,47144.0,0.195]
[1641131282758,0.00680724,47145.0,47142.0,0.14033567]
[1641131283160,0.00680724,47146.0,47142.0,0.14033567]
[1641131283359,0.53718633,47147.0,47142.0,0.14033567]
[1641131283360,0.18680724,47144.0,47142.0,0.33533567]
[1641131283659,0.18,47144.0,47142.0,0.33533567]
[1641131283859,0.00680724,47145.0,47142.0,0.33533567]
[1641131284060,0.18,47144.0,47142.0,0.33533567]
[1641131284260,0.00680724,47143.0,47142.0,0.33533567]
[1641131284762,0.00680724,47143.0,47142.0,0.14033567]
[1641131284962,0.35718633,47145.0,47142.0,0.14033567]
[1641131284963,0.00680724,47144.0,47142.0,0.15238702]
[1641131285362,0.00680724,47143.0,47142.0,0.34738702]
[1641131285762,0.00680724,47143.0,47142.0,0.33533567]
[1641131286062,0.00680724,47145.0,47142.0,0.34738684]
[1641131286463,0.00680724,47145.0,47142.0,0.33533567]
[1641131286862,0.00680724,47146.0,47142.0,0.33533567]
[1641131287262,0.18,47144.0,47142.0,0.33533567]
[1641131287565,0.18,47144.0,47142.0,0.53033567]
[1641131287763,0.00680724,47143.0,47142.0,0.33533567]
[1641131288164,0.00680724,47143.0,47142.0,0.34738684]
[1641131288665,0.00680724,47146.0,47142.0,0.34738684]
[1641131288865,0.00680724,47146.0,47142.0,0.15238684]
[1641131289067,0.00680724,47146.0,47142.0,0.14033567]
[1641131289468,0.00680724,47146.0,47142.0,0.33733567]
[1641131290670,0.00680724,47146.0,47142.0,0.14033567]
[1641131291370,0.00680724,47146.0,47143.0,0.0120508]
[1641131292673,0.00680724,47147.0,47143.0,0.0120508]
[1641131292871,0.00680724,47145.0,47143.0,0.0120508]
[1641131293273,0.00680724,47146.0,47143.0,0.0120508]
[1641131293473,0.00680724,47144.0,47143.0,0.2110508]
[1641131293772,0.00680724,47145.0,47143.0,0.2110508]
[1641131293973,0.00680724,47144.0,47143.0,0.2110508]
[1641131294173,0.00680724,47144.0,47143.0,0.199]
[1641131294375,0.00680724,47147.0,47143.0,0.199]
[1641131294776,0.00680724,47147.0,47142.0,0.14033567]
[1641131295377,0.00680724,47147.0,47142.0,0.33233567]
[1641131295578,0.00680724,47148.0,47142.0,0.33233567]
[1641131295777,0.00680724,47146.0,47142.0,0.33233567]
[1641131296178,0.00680724,47147.0,47142.0,0.33233567]
[1641131296477,0.00680724,47145.0,47142.0,0.33233567]
[1641131296880,0.00680724,47145.0,47142.0,0.14033567]
[1641131297279,0.00680724,47146.0,47144.0,0.84282458]
[1641131297480,0.35718633,47149.0,47144.0,0.84282458]
[1641131298682,0.59578407,47151.0,47145.0,0.84282458]
[1641131298683,0.35718633,47150.0,47145.0,0.84282458]
[1641131299487,0.35718633,47150.0,47145.0,1.03082458]
[1641131299686,0.18,47147.0,47145.0,1.03082458]
[1641131300087,0.18,47148.0,47145.0,1.03082458]
[1641131300286,0.35718633,47150.0,47145.0,1.03082458]
[1641131300490,0.18,47148.0,47145.0,1.03082458]
[1641131300890,0.35718633,47149.0,47145.0,0.188]
[1641131301087,0.18,47148.0,47144.0,0.84282458]
[1641131301287,0.53718633,47149.0,47144.0,0.84282458]
[1641131301488,0.53718633,47149.0,47145.0,0.196]
[1641131302290,0.35718633,47149.0,47145.0,0.196]
[1641131302890,0.35718633,47149.0,47144.0,0.84282458]
[1641131303491,0.35718633,47149.0,47147.0,0.36121045]
[1641131304093,0.09239447,47151.0,47144.0,0.188]
[1641131304305,0.18,47148.0,47144.0,0.188]
[1641131304707,0.18,47148.0,47142.0,0.14033567]
[1641131305105,0.83482456,47147.0,47142.0,0.14033567]
[1641131305306,0.59630326,47145.0,47142.0,0.14033567]
[1641131305507,0.59630326,47145.0,47142.0,0.33233567]
[1641131305910,0.3577371,47143.0,47142.0,0.33233567]
[1641131306711,0.3577371,47143.0,47142.0,0.14033567]
[1641131307511,0.3577371,47143.0,47142.0,0.33833567]
[1641131308713,0.3577371,47143.0,47142.0,0.14033567]
[1641131309115,0.3577371,47143.0,47142.0,0.15238666]
[1641131309613,0.3577371,47143.0,47142.0,0.34938666]
[1641131310917,0.3577371,47143.0,47142.0,0.15238666]
[1641131311514,0.3577371,47143.0,47142.0,0.34738666]
[1641131312517,0.36448132,47143.0,47142.0,0.34738666]
[1641131312819,0.36448132,47143.0,47142.0,0.15238666]
[1641131313520,0.36448132,47143.0,47142.0,0.34738666]
[1641131314919,0.36448132,47143.0,47142.0,0.15238666]
[1641131315122,0.36448132,47143.0,47142.0,0.14033567]
[1641131315520,0.36448132,47143.0,47142.0,0.33533567]
[1641131316024,0.00674422,47143.0,47142.0,0.33533567]
[1641131316424,0.60304748,47143.0,47142.0,0.33533567]
[1641131316822,0.60304748,47143.0,47142.0,0.14033567]
[1641131317625,0.60304748,47143.0,47142.0,0.33533567]
[1641131318526,0.00674422,47143.0,47142.0,0.34738678]
[1641131318825,0.00674422,47143.0,47142.0,0.15238678]
[1641131319230,0.00674422,47143.0,47142.0,0.14033567]
[1641131319426,0.36432212,47143.0,47142.0,0.14033567]
[1641131319826,0.36432212,47143.0,47142.0,0.33633567]
[1641131320326,0.36432212,47143.0,47142.0,0.34838686]
[1641131320525,0.00674422,47143.0,47142.0,0.34838686]
[1641131320728,0.00674422,47143.0,47142.0,0.33633567]
[1641131321029,0.60304748,47144.0,47142.0,0.14033567]
[1641131321228,0.00674422,47143.0,47142.0,0.14033567]
[1641131321427,0.60304748,47143.0,47142.0,0.14033567]
[1641131321627,0.60304748,47143.0,47142.0,0.33433567]
[1641131322827,0.60304748,47143.0,47142.0,0.14033567]
[1641131323531,0.60304748,47143.0,47142.0,0.33533567]
[1641131325528,0.60304748,47143.0,47142.0,0.33333567]
[1641131326935,0.60304748,47143.0,47142.0,0.14033567]
[1641131327734,0.60304748,47143.0,47142.0,0.33333567]
[1641131328935,0.60304748,47143.0,47142.0,0.14033567]
[1641131329636,0.60304748,47143.0,47142.0,0.34638702]
[1641131330038,0.36431629,47143.0,47142.0,0.34638702]
[1641131331040,0.00674422,47143.0,47142.0,0.15238702]
[1641131331641,0.00674422,47143.0,47142.0,0.34738702]
[1641131332738,0.00674422,47143.0,47142.0,0.14033567]
[1641131333139,0.60304748,47143.0,47142.0,0.14033567]
[1641131333338,0.78304748,47143.0,47142.0,0.14033567]
[1641131333542,0.18674422,47143.0,47142.0,0.33233567]
[1641131333839,0.28007059,47143.0,47142.0,0.192]
[1641131334439,0.10007059,47143.0,47142.0,0.192]
[1641131334939,0.10007059,47143.0,47141.0,0.14033567]
[1641131334940,0.93489515,47143.0,47141.0,0.14033567]
[1641131335341,0.84156878,47143.0,47136.0,1.60768671]
[1641131335543,0.60245801,47143.0,47141.0,0.193]
[1641131335742,0.00674422,47142.0,47141.0,0.193]
[1641131336045,0.07357422,47142.0,47141.0,0.193]
[1641131337044,0.66928801,47142.0,47141.0,0.193]
[1641131337644,0.66928801,47142.0,47141.0,0.194]
[1641131338945,0.66928801,47142.0,47136.0,0.16154592]
[1641131339351,0.00674422,47141.0,47137.0,0.01205178]
[1641131341047,0.00674422,47142.0,47137.0,0.01205178]
[1641131341546,0.60245801,47142.0,47137.0,0.01205178]
[1641131341747,0.60245801,47142.0,47137.0,0.20605178]
[1641131342148,0.00674422,47141.0,47138.0,0.01205178]
[1641131342548,0.08842422,47141.0,47138.0,0.01205178]
[1641131342748,0.26842422,47141.0,47138.0,0.01205178]
[1641131343047,0.00674422,47140.0,47136.0,0.14033567]
[1641131343249,0.18,47137.0,47136.0,0.14033567]
[1641131343450,0.18,47137.0,47135.0,1.44614079]
[1641131343649,0.00674422,47137.0,47135.0,1.44614079]
[1641131343851,0.18,47136.0,47133.0,1.44614079]
[1641131344048,0.18674422,47136.0,47133.0,1.44614079]
[1641131344448,0.00674422,47135.0,47133.0,1.44614079]
[1641131345048,0.00674422,47138.0,47133.0,1.44614079]
[1641131345249,0.00674422,47135.0,47133.0,1.44614079]
[1641131345448,0.00674422,47137.0,47133.0,1.44614079]
[1641131345849,0.00674422,47135.0,47134.0,1.32505502]
[1641131346050,0.00674422,47136.0,47134.0,1.03106685]
[1641131346253,0.00674422,47135.0,47134.0,1.04312003]
[1641131346453,0.00674422,47135.0,47134.0,1.03106685]
[1641131346650,0.00674422,47138.0,47134.0,1.04312027]
[1641131346858,0.00674422,47135.0,47134.0,1.04312027]
[1641131347257,0.18,47139.0,47134.0,1.04312027]
[1641131347258,0.00674422,47137.0,47134.0,0.84306685]
[1641131347458,0.00674422,47135.0,47134.0,0.85512023]
[1641131347657,0.00674422,47136.0,47134.0,0.84306685]
[1641131347858,0.00674422,47136.0,47134.0,1.02706685]
[1641131348059,0.00674422,47138.0,47134.0,1.02706685]
[1641131348458,0.00674422,47135.0,47134.0,1.02706685]
[1641131348858,0.00674422,47137.0,47134.0,1.02706685]
[1641131349061,0.00674422,47135.0,47134.0,1.02706685]
[1641131349260,0.00674422,47136.0,47134.0,0.84306685]
[1641131349862,0.00674422,47135.0,47134.0,1.03006685]
[1641131350261,0.00674422,47138.0,47134.0,1.03006685]
[1641131350462,0.00674422,47135.0,47134.0,1.03006685]
[1641131350861,0.00674422,47137.0,47134.0,1.03006685]
[1641131351062,0.00674422,47135.0,47134.0,1.03006685]
[1641131351463,0.00674422,47136.0,47134.0,1.03006685]
[1641131351667,0.00674422,47136.0,47134.0,0.84306685]
[1641131351965,0.00674422,47138.0,47134.0,1.03006685]
[1641131352163,0.00674422,47135.0,47134.0,1.03006685]
[1641131352565,0.18,47136.0,47134.0,0.187]
[1641131352766,0.00674422,47135.0,47134.0,0.187]
[1641131353168,0.00674422,47135.0,47132.0,0.84306685]
[1641131353869,0.18,47134.0,47132.0,1.02006685]
[1641131354370,0.00674422,47133.0,47132.0,1.02006685]
[1641131354771,0.18674422,47133.0,47132.0,0.177]
[1641131355072,0.00674422,47133.0,47131.0,0.84306685]
[1641131355270,0.18674422,47133.0,47131.0,0.84306685]
[1641131355470,0.18,47133.0,47130.0,0.84306685]
[1641131355672,0.00674422,47132.0,47130.0,0.84306685]
[1641131355873,0.00674422,47132.0,47131.0,0.183]
[1641131356275,0.18,47133.0,47131.0,0.19505357]
[1641131356473,0.00674422,47132.0,47131.0,0.19505357]
[1641131356876,0.00674422,47132.0,47131.0,0.183]
[1641131357074,0.00674422,47132.0,47130.0,0.84306685]
[1641131357273,0.00674422,47132.0,47124.0,0.29398817]
[1641131357673,0.18,47126.0,47124.0,0.29398817]
[1641131357875,0.25765,47126.0,47125.0,0.01205423]
[1641131358274,0.25765,47126.0,47124.0,0.46498817]
[1641131358475,0.25765,47126.0,47124.0,0.171]
[1641131358679,0.07765,47126.0,47124.0,0.171]
[1641131359776,0.07765,47126.0,47124.0,0.357]
[1641131360379,0.18,47125.0,47124.0,0.357]
[1641131360577,0.07765,47126.0,47124.0,0.357]
[1641131360778,0.18,47125.0,47124.0,0.36905529]
[1641131361278,0.18,47125.0,47121.0,0.02]
[1641131361682,0.18,47125.0,47124.0,0.01205514]
[1641131361878,0.18,47125.0,47122.0,0.01205514]
[1641131362080,0.18,47125.0,47121.0,0.173]
[1641131362282,0.18,47125.0,47123.0,0.01205517]
[1641131362680,0.18,47125.0,47122.0,0.01205517]
[1641131362880,0.07765,47126.0,47124.0,0.01205517]
[1641131363079,0.26731076,47127.0,47123.0,0.01205517]
[1641131363287,0.26731076,47127.0,47121.0,0.02]
[1641131363484,0.26731076,47127.0,47124.0,0.01205533]
[1641131363684,0.18,47125.0,47124.0,0.01205533]
[1641131364082,0.18,47125.0,47122.0,0.01205533]
[1641131364287,0.18,47125.0,47121.0,0.02]
[1641131364683,0.05916,47126.0,47122.0,0.01205577]
[1641131364882,0.18,47123.0,47122.0,0.01205577]
[1641131365082,0.12,47123.0,47122.0,0.01205577]
[1641131365282,0.23916,47126.0,47122.0,0.01205577]
[1641131366184,0.05916,47126.0,47123.0,0.84321914]
[1641131366382,0.30096836,47124.0,47123.0,0.84321914]
[1641131367783,0.48796836,47124.0,47123.0,1.00321914]
[1641131368383,0.48796836,47124.0,47123.0,0.16]
[1641131369185,0.48796836,47124.0,47121.0,0.86321914]
[1641131369384,0.18,47124.0,47121.0,0.86321914]
[1641131369785,1.2311974,47124.0,47121.0,0.165]
[1641131370287,1.2311974,47124.0,47122.0,0.01205589]
[1641131370488,0.9221974,47123.0,47122.0,0.01205589]
[1641131371189,0.83175238,47123.0,47122.0,0.01205589]
[1641131371389,1.01175238,47124.0,47122.0,0.01205589]
[1641131371788,1.19975238,47124.0,47122.0,0.08905589]
[1641131372193,0.368,47124.0,47122.0,0.077]
[1641131372790,0.188,47124.0,47122.0,0.077]
[1641131373191,0.00674291,47123.0,47121.0,0.02]
[1641131373591,0.00674291,47124.0,47121.0,0.02]
[1641131373790,1.03297594,47125.0,47122.0,0.01205596]
[1641131373993,0.169,47123.0,47121.0,0.196]
[1641131374593,0.35676637,47122.0,47121.0,0.196]
[1641131374991,0.169,47123.0,47121.0,0.196]
[1641131375193,0.169,47123.0,47121.0,0.20805587]
[1641131375394,0.83175238,47124.0,47121.0,0.02]
[1641131375894,1.01975238,47124.0,47121.0,0.16]
[1641131376495,0.188,47124.0,47121.0,0.16]
[1641131376697,0.188,47124.0,47122.0,0.01205595]
[1641131377299,0.20122356,47125.0,47121.0,0.02]
[1641131377898,0.39422356,47125.0,47121.0,0.02]
[1641131379202,0.20122356,47125.0,47121.0,0.02]
[1641131380001,0.39222356,47125.0,47121.0,0.02]
[1641131381402,0.20122356,47125.0,47121.0,0.02]
[1641131381702,0.02122356,47125.0,47121.0,0.02]
[1641131381901,0.21522356,47125.0,47121.0,0.02]
[1641131383304,0.02122356,47125.0,47121.0,0.02]